{"text_format":"3","workbook":"xlsx","n_sheets":2,"sheets":["Журнал втрати ваги","обчислення"],"not_rendered":{"charts":1,"defined_names":7},"read":"whole","date_system":"1900"}

{"sheet":"Журнал втрати ваги","index":0,"n_rows":129,"n_cols":11,"rows_kept":129,"merged":[[0,5,0,9],[1,5,3,9]]}
[null,"БАЖАНА ВАГА","ПОДАННЯ \"Діаграма\"",null,null," В ІРИНИ ВТРАТА ВАГИ"]
[{"$nulls":5},"Відстеження"]
[null,{"v":172,"d":"172.0"},"ЩОТИЖНЯ",{"$nulls":7}," "]
[]
[]
[{"$nulls":10}," "]
{"$rows_empty":18}
[null,"ДАТА","ВАГА"]
[null,"2012-11-30",{"v":176,"d":"176.0"}]
[null,"2012-12-07",{"v":176,"d":"176.0"}]
[null,"2012-12-14",177.6]
[null,"2012-12-21",176.5]
[null,"2012-12-28",176.1]
[null,"2013-01-04",{"v":174,"d":"174.0"}]
[null,"2013-01-11",{"v":173,"d":"173.0"}]
[null,"2013-01-18",{"v":172,"d":"172.0"}]
[null,"2013-01-25",{"v":172,"d":"172.0"}]
[null,"2013-02-01",{"v":173,"d":"173.0"}]
[null,"2013-02-08",{"v":174,"d":"174.0"}]
[null,"2013-02-15",{"v":175,"d":"175.0"}]
[null,"2013-02-22"]
[null,"2013-03-01"]
[null,"2013-03-08"]
[null,"2013-03-15"]
[null,"2013-03-22"]
[null,"2013-03-29"]
[null,"2013-04-05"]
[null,"2013-04-12"]
[null,"2013-04-19"]
[null,"2013-04-26"]
[null,"2013-05-03"]
[null,"2013-05-10"]
[null,"2013-05-17"]
[null,"2013-05-24"]
[null,"2013-05-31"]
[null,"2013-06-07"]
[null,"2013-06-14"]
[null,"2013-06-21"]
[null,"2013-06-28"]
[null,"2013-07-05"]
[null,"2013-07-12"]
[null,"2013-07-19"]
[null,"2013-07-26"]
[null,"2013-08-02"]
[null,"2013-08-09"]
[null,"2013-08-16"]
[null,"2013-08-23"]
[null,"2013-08-30"]
[null,"2013-09-06"]
[null,"2013-09-13"]
[null,"2013-09-20"]
[null,"2013-09-27"]
[null,"2013-10-04"]
[null,"2013-10-11"]
[null,"2013-10-18"]
[null,"2013-10-25"]
[null,"2013-11-01"]
[null,"2013-11-08"]
[null,"2013-11-15"]
[null,"2013-11-22"]
[null,"2013-11-29"]
[null,"2013-12-06"]
[null,"2013-12-13"]
[null,"2013-12-20"]
[null,"2013-12-27"]
[null,"2014-01-03"]
[null,"2014-01-10"]
[null,"2014-01-17"]
[null,"2014-01-24"]
[null,"2014-01-31"]
[null,"2014-02-07"]
[null,"2014-02-14"]
[null,"2014-02-21"]
[null,"2014-02-28"]
[null,"2014-03-07"]
[null,"2014-03-14"]
[null,"2014-03-21"]
[null,"2014-03-28"]
[null,"2014-04-04"]
[null,"2014-04-11"]
[null,"2014-04-18"]
[null,"2014-04-25"]
[null,"2014-05-02"]
[null,"2014-05-09"]
[null,"2014-05-16"]
[null,"2014-05-23"]
[null,"2014-05-30"]
[null,"2014-06-06"]
[null,"2014-06-13"]
[null,"2014-06-20"]
[null,"2014-06-27"]
[null,"2014-07-04"]
[null,"2014-07-11"]
[null,"2014-07-18"]
[null,"2014-07-25"]
[null,"2014-08-01"]
[null,"2014-08-08"]
[null,"2014-08-15"]
[null,"2014-08-22"]
[null,"2014-08-29"]
[null,"2014-09-05"]
[null,"2014-09-12"]
[null,"2014-09-19"]
[null,"2014-09-26"]
[null,"2014-10-03"]
[null,"2014-10-10"]
[null,"2014-10-17"]
[null,"2014-10-24"]
[null,"2014-10-31"]
[null,"2014-11-07"]
[null,"2014-11-14"]
[null,"2014-11-21"]

{"sheet":"обчислення","index":1,"n_rows":108,"n_cols":17,"rows_kept":108,"hidden":true}
["*** Цей аркуш залишається прихованим ***"]
[]
[{"$f":"COUNTIF(A5:A108,FALSE)","v":13},"Періоди","Значення",{"$nulls":3},{"$f":"COUNTIF(H5:H28,\">\"&0)","v":4},"Періоди",null,"Значення"]
[null,"Тиждень",null,null,true,null,null,"Місяць","Кінець місяця"]
[{"$f":"IF(('Журнал втрати ваги'!C26=0)*('Журнал втрати ваги'!C25=0),TRUE)","v":false},{"$f":"IF(A5,0,IF('Журнал втрати ваги'!B26=0,'Журнал втрати ваги'!B25+5,'Журнал втрати ваги'!B26))","v":"2012-11-30"},{"$f":"'Журнал втрати ваги'!C26","v":176},{"$f":"MIN(Періоди_діаграми)","v":"2012-11-30"},{"$f":"IF($E$4,Бажана_вага,NA())","v":172},null,null,{"$f":"DATE(YEAR(B5),MONTH(B5),1)","v":"2012-11-01"},{"$f":"EOMONTH(H5,0)","v":"2012-11-30"},{"$f":"IFERROR(AVERAGEIFS(Таблиця_ваги[ВАГА],Таблиця_ваги[ДАТА],\">=\"&H5,Таблиця_ваги[ДАТА],\"<=\"&I5),NA())","v":176}]
[{"$f":"IF(('Журнал втрати ваги'!C27=0)*('Журнал втрати ваги'!C26=0),TRUE)","v":false},{"$f":"IF(A6,0,IF('Журнал втрати ваги'!B27=0,'Журнал втрати ваги'!B26+5,'Журнал втрати ваги'!B27))","v":"2012-12-07"},{"$f":"'Журнал втрати ваги'!C27","v":176},{"$f":"MAX(Періоди_діаграми)","v":"2013-02-22"},172,null,null,{"$f":"IF(I5+1>MAX($B:$B),NA(),I5+1)","v":"2012-12-01"},"2012-12-31",{"$f":"IFERROR(AVERAGEIFS(Таблиця_ваги[ВАГА],Таблиця_ваги[ДАТА],\">=\"&H6,Таблиця_ваги[ДАТА],\"<=\"&I6),NA())","v":176.55}]
[{"$f":"IF(('Журнал втрати ваги'!C28=0)*('Журнал втрати ваги'!C27=0),TRUE)","v":false},{"$f":"IF(A7,0,IF('Журнал втрати ваги'!B28=0,'Журнал втрати ваги'!B27+5,'Журнал втрати ваги'!B28))","v":"2012-12-14"},{"$f":"'Журнал втрати ваги'!C28","v":177.6},{"$nulls":4},{"$f":"IF(I6+1>MAX($B:$B),NA(),I6+1)","v":"2013-01-01"},"2013-01-31",{"$f":"IFERROR(AVERAGEIFS(Таблиця_ваги[ВАГА],Таблиця_ваги[ДАТА],\">=\"&H7,Таблиця_ваги[ДАТА],\"<=\"&I7),NA())","v":172.75}]
[{"$f":"IF(('Журнал втрати ваги'!C29=0)*('Журнал втрати ваги'!C28=0),TRUE)","v":false},{"$f":"IF(A8,0,IF('Журнал втрати ваги'!B29=0,'Журнал втрати ваги'!B28+5,'Журнал втрати ваги'!B29))","v":"2012-12-21"},{"$f":"'Журнал втрати ваги'!C29","v":176.5},{"$nulls":4},"2013-02-01","2013-02-28",{"$f":"IFERROR(AVERAGEIFS(Таблиця_ваги[ВАГА],Таблиця_ваги[ДАТА],\">=\"&H8,Таблиця_ваги[ДАТА],\"<=\"&I8),NA())","v":174}]
[{"$f":"IF(('Журнал втрати ваги'!C30=0)*('Журнал втрати ваги'!C29=0),TRUE)","v":false},{"$f":"IF(A9,0,IF('Журнал втрати ваги'!B30=0,'Журнал втрати ваги'!B29+5,'Журнал втрати ваги'!B30))","v":"2012-12-28"},{"$f":"'Журнал втрати ваги'!C30","v":176.1},{"$nulls":4},{"$error":"#N/A"},{"$error":"#N/A"},{"$f":"IFERROR(AVERAGEIFS(Таблиця_ваги[ВАГА],Таблиця_ваги[ДАТА],\">=\"&H9,Таблиця_ваги[ДАТА],\"<=\"&I9),NA())","v":{"$error":"#N/A"}}]
[{"$f":"IF(('Журнал втрати ваги'!C31=0)*('Журнал втрати ваги'!C30=0),TRUE)","v":false},{"$f":"IF(A10,0,IF('Журнал втрати ваги'!B31=0,'Журнал втрати ваги'!B30+5,'Журнал втрати ваги'!B31))","v":"2013-01-04"},{"$f":"'Журнал втрати ваги'!C31","v":174},{"$nulls":4},{"$error":"#N/A"},{"$error":"#N/A"},{"$f":"IFERROR(AVERAGEIFS(Таблиця_ваги[ВАГА],Таблиця_ваги[ДАТА],\">=\"&H10,Таблиця_ваги[ДАТА],\"<=\"&I10),NA())","v":{"$error":"#N/A"}}]
[{"$f":"IF(('Журнал втрати ваги'!C32=0)*('Журнал втрати ваги'!C31=0),TRUE)","v":false},{"$f":"IF(A11,0,IF('Журнал втрати ваги'!B32=0,'Журнал втрати ваги'!B31+5,'Журнал втрати ваги'!B32))","v":"2013-01-11"},{"$f":"'Журнал втрати ваги'!C32","v":173},{"$nulls":4},{"$error":"#N/A"},{"$error":"#N/A"},{"$f":"IFERROR(AVERAGEIFS(Таблиця_ваги[ВАГА],Таблиця_ваги[ДАТА],\">=\"&H11,Таблиця_ваги[ДАТА],\"<=\"&I11),NA())","v":{"$error":"#N/A"}},{"$nulls":6},{"$f":"MAX($B:$B)","v":"2013-02-22"}]
[{"$f":"IF(('Журнал втрати ваги'!C33=0)*('Журнал втрати ваги'!C32=0),TRUE)","v":false},{"$f":"IF(A12,0,IF('Журнал втрати ваги'!B33=0,'Журнал втрати ваги'!B32+5,'Журнал втрати ваги'!B33))","v":"2013-01-18"},{"$f":"'Журнал втрати ваги'!C33","v":172},{"$nulls":4},{"$error":"#N/A"},{"$error":"#N/A"},{"$f":"IFERROR(AVERAGEIFS(Таблиця_ваги[ВАГА],Таблиця_ваги[ДАТА],\">=\"&H12,Таблиця_ваги[ДАТА],\"<=\"&I12),NA())","v":{"$error":"#N/A"}}]
[{"$f":"IF(('Журнал втрати ваги'!C34=0)*('Журнал втрати ваги'!C33=0),TRUE)","v":false},{"$f":"IF(A13,0,IF('Журнал втрати ваги'!B34=0,'Журнал втрати ваги'!B33+5,'Журнал втрати ваги'!B34))","v":"2013-01-25"},{"$f":"'Журнал втрати ваги'!C34","v":172},{"$nulls":4},{"$error":"#N/A"},{"$error":"#N/A"},{"$f":"IFERROR(AVERAGEIFS(Таблиця_ваги[ВАГА],Таблиця_ваги[ДАТА],\">=\"&H13,Таблиця_ваги[ДАТА],\"<=\"&I13),NA())","v":{"$error":"#N/A"}}]
[{"$f":"IF(('Журнал втрати ваги'!C35=0)*('Журнал втрати ваги'!C34=0),TRUE)","v":false},{"$f":"IF(A14,0,IF('Журнал втрати ваги'!B35=0,'Журнал втрати ваги'!B34+5,'Журнал втрати ваги'!B35))","v":"2013-02-01"},{"$f":"'Журнал втрати ваги'!C35","v":173},{"$nulls":4},{"$error":"#N/A"},{"$error":"#N/A"},{"$f":"IFERROR(AVERAGEIFS(Таблиця_ваги[ВАГА],Таблиця_ваги[ДАТА],\">=\"&H14,Таблиця_ваги[ДАТА],\"<=\"&I14),NA())","v":{"$error":"#N/A"}}]
[{"$f":"IF(('Журнал втрати ваги'!C36=0)*('Журнал втрати ваги'!C35=0),TRUE)","v":false},{"$f":"IF(A15,0,IF('Журнал втрати ваги'!B36=0,'Журнал втрати ваги'!B35+5,'Журнал втрати ваги'!B36))","v":"2013-02-08"},{"$f":"'Журнал втрати ваги'!C36","v":174},{"$nulls":4},{"$error":"#N/A"},{"$error":"#N/A"},{"$f":"IFERROR(AVERAGEIFS(Таблиця_ваги[ВАГА],Таблиця_ваги[ДАТА],\">=\"&H15,Таблиця_ваги[ДАТА],\"<=\"&I15),NA())","v":{"$error":"#N/A"}}]
[{"$f":"IF(('Журнал втрати ваги'!C37=0)*('Журнал втрати ваги'!C36=0),TRUE)","v":false},{"$f":"IF(A16,0,IF('Журнал втрати ваги'!B37=0,'Журнал втрати ваги'!B36+5,'Журнал втрати ваги'!B37))","v":"2013-02-15"},{"$f":"'Журнал втрати ваги'!C37","v":175},{"$nulls":4},{"$error":"#N/A"},{"$error":"#N/A"},{"$f":"IFERROR(AVERAGEIFS(Таблиця_ваги[ВАГА],Таблиця_ваги[ДАТА],\">=\"&H16,Таблиця_ваги[ДАТА],\"<=\"&I16),NA())","v":{"$error":"#N/A"}}]
[{"$f":"IF(('Журнал втрати ваги'!C38=0)*('Журнал втрати ваги'!C37=0),TRUE)","v":false},{"$f":"IF(A17,0,IF('Журнал втрати ваги'!B38=0,'Журнал втрати ваги'!B37+5,'Журнал втрати ваги'!B38))","v":"2013-02-22"},{"$f":"'Журнал втрати ваги'!C38","v":0},{"$nulls":4},{"$error":"#N/A"},{"$error":"#N/A"},{"$f":"IFERROR(AVERAGEIFS(Таблиця_ваги[ВАГА],Таблиця_ваги[ДАТА],\">=\"&H17,Таблиця_ваги[ДАТА],\"<=\"&I17),NA())","v":{"$error":"#N/A"}}]
[{"$f":"IF(('Журнал втрати ваги'!C39=0)*('Журнал втрати ваги'!C38=0),TRUE)","v":true},{"$f":"IF(A18,0,IF('Журнал втрати ваги'!B39=0,'Журнал втрати ваги'!B38+5,'Журнал втрати ваги'!B39))","v":"00:00:00"},{"$f":"'Журнал втрати ваги'!C39","v":0},{"$nulls":4},{"$error":"#N/A"},{"$error":"#N/A"},{"$f":"IFERROR(AVERAGEIFS(Таблиця_ваги[ВАГА],Таблиця_ваги[ДАТА],\">=\"&H18,Таблиця_ваги[ДАТА],\"<=\"&I18),NA())","v":{"$error":"#N/A"}}]
[{"$f":"IF(('Журнал втрати ваги'!C40=0)*('Журнал втрати ваги'!C39=0),TRUE)","v":true},{"$f":"IF(A19,0,IF('Журнал втрати ваги'!B40=0,'Журнал втрати ваги'!B39+5,'Журнал втрати ваги'!B40))","v":"00:00:00"},{"$f":"'Журнал втрати ваги'!C40","v":0},{"$nulls":4},{"$error":"#N/A"},{"$error":"#N/A"},{"$f":"IFERROR(AVERAGEIFS(Таблиця_ваги[ВАГА],Таблиця_ваги[ДАТА],\">=\"&H19,Таблиця_ваги[ДАТА],\"<=\"&I19),NA())","v":{"$error":"#N/A"}}]
[{"$f":"IF(('Журнал втрати ваги'!C41=0)*('Журнал втрати ваги'!C40=0),TRUE)","v":true},{"$f":"IF(A20,0,IF('Журнал втрати ваги'!B41=0,'Журнал втрати ваги'!B40+5,'Журнал втрати ваги'!B41))","v":"00:00:00"},{"$f":"'Журнал втрати ваги'!C41","v":0},{"$nulls":4},{"$error":"#N/A"},{"$error":"#N/A"},{"$f":"IFERROR(AVERAGEIFS(Таблиця_ваги[ВАГА],Таблиця_ваги[ДАТА],\">=\"&H20,Таблиця_ваги[ДАТА],\"<=\"&I20),NA())","v":{"$error":"#N/A"}}]
[{"$f":"IF(('Журнал втрати ваги'!C42=0)*('Журнал втрати ваги'!C41=0),TRUE)","v":true},{"$f":"IF(A21,0,IF('Журнал втрати ваги'!B42=0,'Журнал втрати ваги'!B41+5,'Журнал втрати ваги'!B42))","v":"00:00:00"},{"$f":"'Журнал втрати ваги'!C42","v":0},{"$nulls":4},{"$error":"#N/A"},{"$error":"#N/A"},{"$f":"IFERROR(AVERAGEIFS(Таблиця_ваги[ВАГА],Таблиця_ваги[ДАТА],\">=\"&H21,Таблиця_ваги[ДАТА],\"<=\"&I21),NA())","v":{"$error":"#N/A"}}]
[{"$f":"IF(('Журнал втрати ваги'!C43=0)*('Журнал втрати ваги'!C42=0),TRUE)","v":true},{"$f":"IF(A22,0,IF('Журнал втрати ваги'!B43=0,'Журнал втрати ваги'!B42+5,'Журнал втрати ваги'!B43))","v":"00:00:00"},{"$f":"'Журнал втрати ваги'!C43","v":0},{"$nulls":4},{"$error":"#N/A"},{"$error":"#N/A"},{"$f":"IFERROR(AVERAGEIFS(Таблиця_ваги[ВАГА],Таблиця_ваги[ДАТА],\">=\"&H22,Таблиця_ваги[ДАТА],\"<=\"&I22),NA())","v":{"$error":"#N/A"}}]
[{"$f":"IF(('Журнал втрати ваги'!C44=0)*('Журнал втрати ваги'!C43=0),TRUE)","v":true},{"$f":"IF(A23,0,IF('Журнал втрати ваги'!B44=0,'Журнал втрати ваги'!B43+5,'Журнал втрати ваги'!B44))","v":"00:00:00"},{"$f":"'Журнал втрати ваги'!C44","v":0},{"$nulls":4},{"$error":"#N/A"},{"$error":"#N/A"},{"$f":"IFERROR(AVERAGEIFS(Таблиця_ваги[ВАГА],Таблиця_ваги[ДАТА],\">=\"&H23,Таблиця_ваги[ДАТА],\"<=\"&I23),NA())","v":{"$error":"#N/A"}}]
[{"$f":"IF(('Журнал втрати ваги'!C45=0)*('Журнал втрати ваги'!C44=0),TRUE)","v":true},{"$f":"IF(A24,0,IF('Журнал втрати ваги'!B45=0,'Журнал втрати ваги'!B44+5,'Журнал втрати ваги'!B45))","v":"00:00:00"},{"$f":"'Журнал втрати ваги'!C45","v":0},{"$nulls":4},{"$error":"#N/A"},{"$error":"#N/A"},{"$f":"IFERROR(AVERAGEIFS(Таблиця_ваги[ВАГА],Таблиця_ваги[ДАТА],\">=\"&H24,Таблиця_ваги[ДАТА],\"<=\"&I24),NA())","v":{"$error":"#N/A"}}]
[{"$f":"IF(('Журнал втрати ваги'!C46=0)*('Журнал втрати ваги'!C45=0),TRUE)","v":true},{"$f":"IF(A25,0,IF('Журнал втрати ваги'!B46=0,'Журнал втрати ваги'!B45+5,'Журнал втрати ваги'!B46))","v":"00:00:00"},{"$f":"'Журнал втрати ваги'!C46","v":0},{"$nulls":4},{"$error":"#N/A"},{"$error":"#N/A"},{"$f":"IFERROR(AVERAGEIFS(Таблиця_ваги[ВАГА],Таблиця_ваги[ДАТА],\">=\"&H25,Таблиця_ваги[ДАТА],\"<=\"&I25),NA())","v":{"$error":"#N/A"}}]
[{"$f":"IF(('Журнал втрати ваги'!C47=0)*('Журнал втрати ваги'!C46=0),TRUE)","v":true},{"$f":"IF(A26,0,IF('Журнал втрати ваги'!B47=0,'Журнал втрати ваги'!B46+5,'Журнал втрати ваги'!B47))","v":"00:00:00"},{"$f":"'Журнал втрати ваги'!C47","v":0},{"$nulls":4},{"$error":"#N/A"},{"$error":"#N/A"},{"$f":"IFERROR(AVERAGEIFS(Таблиця_ваги[ВАГА],Таблиця_ваги[ДАТА],\">=\"&H26,Таблиця_ваги[ДАТА],\"<=\"&I26),NA())","v":{"$error":"#N/A"}}]
[{"$f":"IF(('Журнал втрати ваги'!C48=0)*('Журнал втрати ваги'!C47=0),TRUE)","v":true},{"$f":"IF(A27,0,IF('Журнал втрати ваги'!B48=0,'Журнал втрати ваги'!B47+5,'Журнал втрати ваги'!B48))","v":"00:00:00"},{"$f":"'Журнал втрати ваги'!C48","v":0},{"$nulls":4},{"$error":"#N/A"},{"$error":"#N/A"},{"$f":"IFERROR(AVERAGEIFS(Таблиця_ваги[ВАГА],Таблиця_ваги[ДАТА],\">=\"&H27,Таблиця_ваги[ДАТА],\"<=\"&I27),NA())","v":{"$error":"#N/A"}}]
[{"$f":"IF(('Журнал втрати ваги'!C49=0)*('Журнал втрати ваги'!C48=0),TRUE)","v":true},{"$f":"IF(A28,0,IF('Журнал втрати ваги'!B49=0,'Журнал втрати ваги'!B48+5,'Журнал втрати ваги'!B49))","v":"00:00:00"},{"$f":"'Журнал втрати ваги'!C49","v":0},{"$nulls":4},{"$error":"#N/A"},{"$error":"#N/A"},{"$f":"IFERROR(AVERAGEIFS(Таблиця_ваги[ВАГА],Таблиця_ваги[ДАТА],\">=\"&H28,Таблиця_ваги[ДАТА],\"<=\"&I28),NA())","v":{"$error":"#N/A"}}]
[{"$f":"IF(('Журнал втрати ваги'!C50=0)*('Журнал втрати ваги'!C49=0),TRUE)","v":true},{"$f":"IF(A29,0,IF('Журнал втрати ваги'!B50=0,'Журнал втрати ваги'!B49+5,'Журнал втрати ваги'!B50))","v":"00:00:00"},{"$f":"'Журнал втрати ваги'!C50","v":0}]
[{"$f":"IF(('Журнал втрати ваги'!C51=0)*('Журнал втрати ваги'!C50=0),TRUE)","v":true},{"$f":"IF(A30,0,IF('Журнал втрати ваги'!B51=0,'Журнал втрати ваги'!B50+5,'Журнал втрати ваги'!B51))","v":"00:00:00"},{"$f":"'Журнал втрати ваги'!C51","v":0}]
[{"$f":"IF(('Журнал втрати ваги'!C52=0)*('Журнал втрати ваги'!C51=0),TRUE)","v":true},{"$f":"IF(A31,0,IF('Журнал втрати ваги'!B52=0,'Журнал втрати ваги'!B51+5,'Журнал втрати ваги'!B52))","v":"00:00:00"},{"$f":"'Журнал втрати ваги'!C52","v":0}]
[{"$f":"IF(('Журнал втрати ваги'!C53=0)*('Журнал втрати ваги'!C52=0),TRUE)","v":true},{"$f":"IF(A32,0,IF('Журнал втрати ваги'!B53=0,'Журнал втрати ваги'!B52+5,'Журнал втрати ваги'!B53))","v":"00:00:00"},{"$f":"'Журнал втрати ваги'!C53","v":0}]
[{"$f":"IF(('Журнал втрати ваги'!C54=0)*('Журнал втрати ваги'!C53=0),TRUE)","v":true},{"$f":"IF(A33,0,IF('Журнал втрати ваги'!B54=0,'Журнал втрати ваги'!B53+5,'Журнал втрати ваги'!B54))","v":"00:00:00"},{"$f":"'Журнал втрати ваги'!C54","v":0}]
[{"$f":"IF(('Журнал втрати ваги'!C55=0)*('Журнал втрати ваги'!C54=0),TRUE)","v":true},{"$f":"IF(A34,0,IF('Журнал втрати ваги'!B55=0,'Журнал втрати ваги'!B54+5,'Журнал втрати ваги'!B55))","v":"00:00:00"},{"$f":"'Журнал втрати ваги'!C55","v":0}]
[{"$f":"IF(('Журнал втрати ваги'!C56=0)*('Журнал втрати ваги'!C55=0),TRUE)","v":true},{"$f":"IF(A35,0,IF('Журнал втрати ваги'!B56=0,'Журнал втрати ваги'!B55+5,'Журнал втрати ваги'!B56))","v":"00:00:00"},{"$f":"'Журнал втрати ваги'!C56","v":0}]
[{"$f":"IF(('Журнал втрати ваги'!C57=0)*('Журнал втрати ваги'!C56=0),TRUE)","v":true},{"$f":"IF(A36,0,IF('Журнал втрати ваги'!B57=0,'Журнал втрати ваги'!B56+5,'Журнал втрати ваги'!B57))","v":"00:00:00"},{"$f":"'Журнал втрати ваги'!C57","v":0}]
[{"$f":"IF(('Журнал втрати ваги'!C58=0)*('Журнал втрати ваги'!C57=0),TRUE)","v":true},{"$f":"IF(A37,0,IF('Журнал втрати ваги'!B58=0,'Журнал втрати ваги'!B57+5,'Журнал втрати ваги'!B58))","v":"00:00:00"},{"$f":"'Журнал втрати ваги'!C58","v":0}]
[{"$f":"IF(('Журнал втрати ваги'!C59=0)*('Журнал втрати ваги'!C58=0),TRUE)","v":true},{"$f":"IF(A38,0,IF('Журнал втрати ваги'!B59=0,'Журнал втрати ваги'!B58+5,'Журнал втрати ваги'!B59))","v":"00:00:00"},{"$f":"'Журнал втрати ваги'!C59","v":0}]
[{"$f":"IF(('Журнал втрати ваги'!C60=0)*('Журнал втрати ваги'!C59=0),TRUE)","v":true},{"$f":"IF(A39,0,IF('Журнал втрати ваги'!B60=0,'Журнал втрати ваги'!B59+5,'Журнал втрати ваги'!B60))","v":"00:00:00"},{"$f":"'Журнал втрати ваги'!C60","v":0}]
[{"$f":"IF(('Журнал втрати ваги'!C61=0)*('Журнал втрати ваги'!C60=0),TRUE)","v":true},{"$f":"IF(A40,0,IF('Журнал втрати ваги'!B61=0,'Журнал втрати ваги'!B60+5,'Журнал втрати ваги'!B61))","v":"00:00:00"},{"$f":"'Журнал втрати ваги'!C61","v":0}]
[{"$f":"IF(('Журнал втрати ваги'!C62=0)*('Журнал втрати ваги'!C61=0),TRUE)","v":true},{"$f":"IF(A41,0,IF('Журнал втрати ваги'!B62=0,'Журнал втрати ваги'!B61+5,'Журнал втрати ваги'!B62))","v":"00:00:00"},{"$f":"'Журнал втрати ваги'!C62","v":0}]
[{"$f":"IF(('Журнал втрати ваги'!C63=0)*('Журнал втрати ваги'!C62=0),TRUE)","v":true},{"$f":"IF(A42,0,IF('Журнал втрати ваги'!B63=0,'Журнал втрати ваги'!B62+5,'Журнал втрати ваги'!B63))","v":"00:00:00"},{"$f":"'Журнал втрати ваги'!C63","v":0}]
[{"$f":"IF(('Журнал втрати ваги'!C64=0)*('Журнал втрати ваги'!C63=0),TRUE)","v":true},{"$f":"IF(A43,0,IF('Журнал втрати ваги'!B64=0,'Журнал втрати ваги'!B63+5,'Журнал втрати ваги'!B64))","v":"00:00:00"},{"$f":"'Журнал втрати ваги'!C64","v":0}]
[{"$f":"IF(('Журнал втрати ваги'!C65=0)*('Журнал втрати ваги'!C64=0),TRUE)","v":true},{"$f":"IF(A44,0,IF('Журнал втрати ваги'!B65=0,'Журнал втрати ваги'!B64+5,'Журнал втрати ваги'!B65))","v":"00:00:00"},{"$f":"'Журнал втрати ваги'!C65","v":0}]
[{"$f":"IF(('Журнал втрати ваги'!C66=0)*('Журнал втрати ваги'!C65=0),TRUE)","v":true},{"$f":"IF(A45,0,IF('Журнал втрати ваги'!B66=0,'Журнал втрати ваги'!B65+5,'Журнал втрати ваги'!B66))","v":"00:00:00"},{"$f":"'Журнал втрати ваги'!C66","v":0}]
[{"$f":"IF(('Журнал втрати ваги'!C67=0)*('Журнал втрати ваги'!C66=0),TRUE)","v":true},{"$f":"IF(A46,0,IF('Журнал втрати ваги'!B67=0,'Журнал втрати ваги'!B66+5,'Журнал втрати ваги'!B67))","v":"00:00:00"},{"$f":"'Журнал втрати ваги'!C67","v":0}]
[{"$f":"IF(('Журнал втрати ваги'!C68=0)*('Журнал втрати ваги'!C67=0),TRUE)","v":true},{"$f":"IF(A47,0,IF('Журнал втрати ваги'!B68=0,'Журнал втрати ваги'!B67+5,'Журнал втрати ваги'!B68))","v":"00:00:00"},{"$f":"'Журнал втрати ваги'!C68","v":0}]
[{"$f":"IF(('Журнал втрати ваги'!C69=0)*('Журнал втрати ваги'!C68=0),TRUE)","v":true},{"$f":"IF(A48,0,IF('Журнал втрати ваги'!B69=0,'Журнал втрати ваги'!B68+5,'Журнал втрати ваги'!B69))","v":"00:00:00"},{"$f":"'Журнал втрати ваги'!C69","v":0}]
[{"$f":"IF(('Журнал втрати ваги'!C70=0)*('Журнал втрати ваги'!C69=0),TRUE)","v":true},{"$f":"IF(A49,0,IF('Журнал втрати ваги'!B70=0,'Журнал втрати ваги'!B69+5,'Журнал втрати ваги'!B70))","v":"00:00:00"},{"$f":"'Журнал втрати ваги'!C70","v":0}]
[{"$f":"IF(('Журнал втрати ваги'!C71=0)*('Журнал втрати ваги'!C70=0),TRUE)","v":true},{"$f":"IF(A50,0,IF('Журнал втрати ваги'!B71=0,'Журнал втрати ваги'!B70+5,'Журнал втрати ваги'!B71))","v":"00:00:00"},{"$f":"'Журнал втрати ваги'!C71","v":0}]
[{"$f":"IF(('Журнал втрати ваги'!C72=0)*('Журнал втрати ваги'!C71=0),TRUE)","v":true},{"$f":"IF(A51,0,IF('Журнал втрати ваги'!B72=0,'Журнал втрати ваги'!B71+5,'Журнал втрати ваги'!B72))","v":"00:00:00"},{"$f":"'Журнал втрати ваги'!C72","v":0}]
[{"$f":"IF(('Журнал втрати ваги'!C73=0)*('Журнал втрати ваги'!C72=0),TRUE)","v":true},{"$f":"IF(A52,0,IF('Журнал втрати ваги'!B73=0,'Журнал втрати ваги'!B72+5,'Журнал втрати ваги'!B73))","v":"00:00:00"},{"$f":"'Журнал втрати ваги'!C73","v":0}]
[{"$f":"IF(('Журнал втрати ваги'!C74=0)*('Журнал втрати ваги'!C73=0),TRUE)","v":true},{"$f":"IF(A53,0,IF('Журнал втрати ваги'!B74=0,'Журнал втрати ваги'!B73+5,'Журнал втрати ваги'!B74))","v":"00:00:00"},{"$f":"'Журнал втрати ваги'!C74","v":0}]
[{"$f":"IF(('Журнал втрати ваги'!C75=0)*('Журнал втрати ваги'!C74=0),TRUE)","v":true},{"$f":"IF(A54,0,IF('Журнал втрати ваги'!B75=0,'Журнал втрати ваги'!B74+5,'Журнал втрати ваги'!B75))","v":"00:00:00"},{"$f":"'Журнал втрати ваги'!C75","v":0}]
[{"$f":"IF(('Журнал втрати ваги'!C76=0)*('Журнал втрати ваги'!C75=0),TRUE)","v":true},{"$f":"IF(A55,0,IF('Журнал втрати ваги'!B76=0,'Журнал втрати ваги'!B75+5,'Журнал втрати ваги'!B76))","v":"00:00:00"},{"$f":"'Журнал втрати ваги'!C76","v":0}]
[{"$f":"IF(('Журнал втрати ваги'!C77=0)*('Журнал втрати ваги'!C76=0),TRUE)","v":true},{"$f":"IF(A56,0,IF('Журнал втрати ваги'!B77=0,'Журнал втрати ваги'!B76+5,'Журнал втрати ваги'!B77))","v":"00:00:00"},{"$f":"'Журнал втрати ваги'!C77","v":0}]
[{"$f":"IF(('Журнал втрати ваги'!C78=0)*('Журнал втрати ваги'!C77=0),TRUE)","v":true},{"$f":"IF(A57,0,IF('Журнал втрати ваги'!B78=0,'Журнал втрати ваги'!B77+5,'Журнал втрати ваги'!B78))","v":"00:00:00"},{"$f":"'Журнал втрати ваги'!C78","v":0}]
[{"$f":"IF(('Журнал втрати ваги'!C79=0)*('Журнал втрати ваги'!C78=0),TRUE)","v":true},{"$f":"IF(A58,0,IF('Журнал втрати ваги'!B79=0,'Журнал втрати ваги'!B78+5,'Журнал втрати ваги'!B79))","v":"00:00:00"},{"$f":"'Журнал втрати ваги'!C79","v":0}]
[{"$f":"IF(('Журнал втрати ваги'!C80=0)*('Журнал втрати ваги'!C79=0),TRUE)","v":true},{"$f":"IF(A59,0,IF('Журнал втрати ваги'!B80=0,'Журнал втрати ваги'!B79+5,'Журнал втрати ваги'!B80))","v":"00:00:00"},{"$f":"'Журнал втрати ваги'!C80","v":0}]
[{"$f":"IF(('Журнал втрати ваги'!C81=0)*('Журнал втрати ваги'!C80=0),TRUE)","v":true},{"$f":"IF(A60,0,IF('Журнал втрати ваги'!B81=0,'Журнал втрати ваги'!B80+5,'Журнал втрати ваги'!B81))","v":"00:00:00"},{"$f":"'Журнал втрати ваги'!C81","v":0}]
[{"$f":"IF(('Журнал втрати ваги'!C82=0)*('Журнал втрати ваги'!C81=0),TRUE)","v":true},{"$f":"IF(A61,0,IF('Журнал втрати ваги'!B82=0,'Журнал втрати ваги'!B81+5,'Журнал втрати ваги'!B82))","v":"00:00:00"},{"$f":"'Журнал втрати ваги'!C82","v":0}]
[{"$f":"IF(('Журнал втрати ваги'!C83=0)*('Журнал втрати ваги'!C82=0),TRUE)","v":true},{"$f":"IF(A62,0,IF('Журнал втрати ваги'!B83=0,'Журнал втрати ваги'!B82+5,'Журнал втрати ваги'!B83))","v":"00:00:00"},{"$f":"'Журнал втрати ваги'!C83","v":0}]
[{"$f":"IF(('Журнал втрати ваги'!C84=0)*('Журнал втрати ваги'!C83=0),TRUE)","v":true},{"$f":"IF(A63,0,IF('Журнал втрати ваги'!B84=0,'Журнал втрати ваги'!B83+5,'Журнал втрати ваги'!B84))","v":"00:00:00"},{"$f":"'Журнал втрати ваги'!C84","v":0}]
[{"$f":"IF(('Журнал втрати ваги'!C85=0)*('Журнал втрати ваги'!C84=0),TRUE)","v":true},{"$f":"IF(A64,0,IF('Журнал втрати ваги'!B85=0,'Журнал втрати ваги'!B84+5,'Журнал втрати ваги'!B85))","v":"00:00:00"},{"$f":"'Журнал втрати ваги'!C85","v":0}]
[{"$f":"IF(('Журнал втрати ваги'!C86=0)*('Журнал втрати ваги'!C85=0),TRUE)","v":true},{"$f":"IF(A65,0,IF('Журнал втрати ваги'!B86=0,'Журнал втрати ваги'!B85+5,'Журнал втрати ваги'!B86))","v":"00:00:00"},{"$f":"'Журнал втрати ваги'!C86","v":0}]
[{"$f":"IF(('Журнал втрати ваги'!C87=0)*('Журнал втрати ваги'!C86=0),TRUE)","v":true},{"$f":"IF(A66,0,IF('Журнал втрати ваги'!B87=0,'Журнал втрати ваги'!B86+5,'Журнал втрати ваги'!B87))","v":"00:00:00"},{"$f":"'Журнал втрати ваги'!C87","v":0}]
[{"$f":"IF(('Журнал втрати ваги'!C88=0)*('Журнал втрати ваги'!C87=0),TRUE)","v":true},{"$f":"IF(A67,0,IF('Журнал втрати ваги'!B88=0,'Журнал втрати ваги'!B87+5,'Журнал втрати ваги'!B88))","v":"00:00:00"},{"$f":"'Журнал втрати ваги'!C88","v":0}]
[{"$f":"IF(('Журнал втрати ваги'!C89=0)*('Журнал втрати ваги'!C88=0),TRUE)","v":true},{"$f":"IF(A68,0,IF('Журнал втрати ваги'!B89=0,'Журнал втрати ваги'!B88+5,'Журнал втрати ваги'!B89))","v":"00:00:00"},{"$f":"'Журнал втрати ваги'!C89","v":0}]
[{"$f":"IF(('Журнал втрати ваги'!C90=0)*('Журнал втрати ваги'!C89=0),TRUE)","v":true},{"$f":"IF(A69,0,IF('Журнал втрати ваги'!B90=0,'Журнал втрати ваги'!B89+5,'Журнал втрати ваги'!B90))","v":"00:00:00"},{"$f":"'Журнал втрати ваги'!C90","v":0}]
[{"$f":"IF(('Журнал втрати ваги'!C91=0)*('Журнал втрати ваги'!C90=0),TRUE)","v":true},{"$f":"IF(A70,0,IF('Журнал втрати ваги'!B91=0,'Журнал втрати ваги'!B90+5,'Журнал втрати ваги'!B91))","v":"00:00:00"},{"$f":"'Журнал втрати ваги'!C91","v":0}]
[{"$f":"IF(('Журнал втрати ваги'!C92=0)*('Журнал втрати ваги'!C91=0),TRUE)","v":true},{"$f":"IF(A71,0,IF('Журнал втрати ваги'!B92=0,'Журнал втрати ваги'!B91+5,'Журнал втрати ваги'!B92))","v":"00:00:00"},{"$f":"'Журнал втрати ваги'!C92","v":0}]
[{"$f":"IF(('Журнал втрати ваги'!C93=0)*('Журнал втрати ваги'!C92=0),TRUE)","v":true},{"$f":"IF(A72,0,IF('Журнал втрати ваги'!B93=0,'Журнал втрати ваги'!B92+5,'Журнал втрати ваги'!B93))","v":"00:00:00"},{"$f":"'Журнал втрати ваги'!C93","v":0}]
[{"$f":"IF(('Журнал втрати ваги'!C94=0)*('Журнал втрати ваги'!C93=0),TRUE)","v":true},{"$f":"IF(A73,0,IF('Журнал втрати ваги'!B94=0,'Журнал втрати ваги'!B93+5,'Журнал втрати ваги'!B94))","v":"00:00:00"},{"$f":"'Журнал втрати ваги'!C94","v":0}]
[{"$f":"IF(('Журнал втрати ваги'!C95=0)*('Журнал втрати ваги'!C94=0),TRUE)","v":true},{"$f":"IF(A74,0,IF('Журнал втрати ваги'!B95=0,'Журнал втрати ваги'!B94+5,'Журнал втрати ваги'!B95))","v":"00:00:00"},{"$f":"'Журнал втрати ваги'!C95","v":0}]
[{"$f":"IF(('Журнал втрати ваги'!C96=0)*('Журнал втрати ваги'!C95=0),TRUE)","v":true},{"$f":"IF(A75,0,IF('Журнал втрати ваги'!B96=0,'Журнал втрати ваги'!B95+5,'Журнал втрати ваги'!B96))","v":"00:00:00"},{"$f":"'Журнал втрати ваги'!C96","v":0}]
[{"$f":"IF(('Журнал втрати ваги'!C97=0)*('Журнал втрати ваги'!C96=0),TRUE)","v":true},{"$f":"IF(A76,0,IF('Журнал втрати ваги'!B97=0,'Журнал втрати ваги'!B96+5,'Журнал втрати ваги'!B97))","v":"00:00:00"},{"$f":"'Журнал втрати ваги'!C97","v":0}]
[{"$f":"IF(('Журнал втрати ваги'!C98=0)*('Журнал втрати ваги'!C97=0),TRUE)","v":true},{"$f":"IF(A77,0,IF('Журнал втрати ваги'!B98=0,'Журнал втрати ваги'!B97+5,'Журнал втрати ваги'!B98))","v":"00:00:00"},{"$f":"'Журнал втрати ваги'!C98","v":0}]
[{"$f":"IF(('Журнал втрати ваги'!C99=0)*('Журнал втрати ваги'!C98=0),TRUE)","v":true},{"$f":"IF(A78,0,IF('Журнал втрати ваги'!B99=0,'Журнал втрати ваги'!B98+5,'Журнал втрати ваги'!B99))","v":"00:00:00"},{"$f":"'Журнал втрати ваги'!C99","v":0}]
[{"$f":"IF(('Журнал втрати ваги'!C100=0)*('Журнал втрати ваги'!C99=0),TRUE)","v":true},{"$f":"IF(A79,0,IF('Журнал втрати ваги'!B100=0,'Журнал втрати ваги'!B99+5,'Журнал втрати ваги'!B100))","v":"00:00:00"},{"$f":"'Журнал втрати ваги'!C100","v":0}]
[{"$f":"IF(('Журнал втрати ваги'!C101=0)*('Журнал втрати ваги'!C100=0),TRUE)","v":true},{"$f":"IF(A80,0,IF('Журнал втрати ваги'!B101=0,'Журнал втрати ваги'!B100+5,'Журнал втрати ваги'!B101))","v":"00:00:00"},{"$f":"'Журнал втрати ваги'!C101","v":0}]
[{"$f":"IF(('Журнал втрати ваги'!C102=0)*('Журнал втрати ваги'!C101=0),TRUE)","v":true},{"$f":"IF(A81,0,IF('Журнал втрати ваги'!B102=0,'Журнал втрати ваги'!B101+5,'Журнал втрати ваги'!B102))","v":"00:00:00"},{"$f":"'Журнал втрати ваги'!C102","v":0}]
[{"$f":"IF(('Журнал втрати ваги'!C103=0)*('Журнал втрати ваги'!C102=0),TRUE)","v":true},{"$f":"IF(A82,0,IF('Журнал втрати ваги'!B103=0,'Журнал втрати ваги'!B102+5,'Журнал втрати ваги'!B103))","v":"00:00:00"},{"$f":"'Журнал втрати ваги'!C103","v":0}]
[{"$f":"IF(('Журнал втрати ваги'!C104=0)*('Журнал втрати ваги'!C103=0),TRUE)","v":true},{"$f":"IF(A83,0,IF('Журнал втрати ваги'!B104=0,'Журнал втрати ваги'!B103+5,'Журнал втрати ваги'!B104))","v":"00:00:00"},{"$f":"'Журнал втрати ваги'!C104","v":0}]
[{"$f":"IF(('Журнал втрати ваги'!C105=0)*('Журнал втрати ваги'!C104=0),TRUE)","v":true},{"$f":"IF(A84,0,IF('Журнал втрати ваги'!B105=0,'Журнал втрати ваги'!B104+5,'Журнал втрати ваги'!B105))","v":"00:00:00"},{"$f":"'Журнал втрати ваги'!C105","v":0}]
[{"$f":"IF(('Журнал втрати ваги'!C106=0)*('Журнал втрати ваги'!C105=0),TRUE)","v":true},{"$f":"IF(A85,0,IF('Журнал втрати ваги'!B106=0,'Журнал втрати ваги'!B105+5,'Журнал втрати ваги'!B106))","v":"00:00:00"},{"$f":"'Журнал втрати ваги'!C106","v":0}]
[{"$f":"IF(('Журнал втрати ваги'!C107=0)*('Журнал втрати ваги'!C106=0),TRUE)","v":true},{"$f":"IF(A86,0,IF('Журнал втрати ваги'!B107=0,'Журнал втрати ваги'!B106+5,'Журнал втрати ваги'!B107))","v":"00:00:00"},{"$f":"'Журнал втрати ваги'!C107","v":0}]
[{"$f":"IF(('Журнал втрати ваги'!C108=0)*('Журнал втрати ваги'!C107=0),TRUE)","v":true},{"$f":"IF(A87,0,IF('Журнал втрати ваги'!B108=0,'Журнал втрати ваги'!B107+5,'Журнал втрати ваги'!B108))","v":"00:00:00"},{"$f":"'Журнал втрати ваги'!C108","v":0}]
[{"$f":"IF(('Журнал втрати ваги'!C109=0)*('Журнал втрати ваги'!C108=0),TRUE)","v":true},{"$f":"IF(A88,0,IF('Журнал втрати ваги'!B109=0,'Журнал втрати ваги'!B108+5,'Журнал втрати ваги'!B109))","v":"00:00:00"},{"$f":"'Журнал втрати ваги'!C109","v":0}]
[{"$f":"IF(('Журнал втрати ваги'!C110=0)*('Журнал втрати ваги'!C109=0),TRUE)","v":true},{"$f":"IF(A89,0,IF('Журнал втрати ваги'!B110=0,'Журнал втрати ваги'!B109+5,'Журнал втрати ваги'!B110))","v":"00:00:00"},{"$f":"'Журнал втрати ваги'!C110","v":0}]
[{"$f":"IF(('Журнал втрати ваги'!C111=0)*('Журнал втрати ваги'!C110=0),TRUE)","v":true},{"$f":"IF(A90,0,IF('Журнал втрати ваги'!B111=0,'Журнал втрати ваги'!B110+5,'Журнал втрати ваги'!B111))","v":"00:00:00"},{"$f":"'Журнал втрати ваги'!C111","v":0}]
[{"$f":"IF(('Журнал втрати ваги'!C112=0)*('Журнал втрати ваги'!C111=0),TRUE)","v":true},{"$f":"IF(A91,0,IF('Журнал втрати ваги'!B112=0,'Журнал втрати ваги'!B111+5,'Журнал втрати ваги'!B112))","v":"00:00:00"},{"$f":"'Журнал втрати ваги'!C112","v":0}]
[{"$f":"IF(('Журнал втрати ваги'!C113=0)*('Журнал втрати ваги'!C112=0),TRUE)","v":true},{"$f":"IF(A92,0,IF('Журнал втрати ваги'!B113=0,'Журнал втрати ваги'!B112+5,'Журнал втрати ваги'!B113))","v":"00:00:00"},{"$f":"'Журнал втрати ваги'!C113","v":0}]
[{"$f":"IF(('Журнал втрати ваги'!C114=0)*('Журнал втрати ваги'!C113=0),TRUE)","v":true},{"$f":"IF(A93,0,IF('Журнал втрати ваги'!B114=0,'Журнал втрати ваги'!B113+5,'Журнал втрати ваги'!B114))","v":"00:00:00"},{"$f":"'Журнал втрати ваги'!C114","v":0}]
[{"$f":"IF(('Журнал втрати ваги'!C115=0)*('Журнал втрати ваги'!C114=0),TRUE)","v":true},{"$f":"IF(A94,0,IF('Журнал втрати ваги'!B115=0,'Журнал втрати ваги'!B114+5,'Журнал втрати ваги'!B115))","v":"00:00:00"},{"$f":"'Журнал втрати ваги'!C115","v":0}]
[{"$f":"IF(('Журнал втрати ваги'!C116=0)*('Журнал втрати ваги'!C115=0),TRUE)","v":true},{"$f":"IF(A95,0,IF('Журнал втрати ваги'!B116=0,'Журнал втрати ваги'!B115+5,'Журнал втрати ваги'!B116))","v":"00:00:00"},{"$f":"'Журнал втрати ваги'!C116","v":0}]
[{"$f":"IF(('Журнал втрати ваги'!C117=0)*('Журнал втрати ваги'!C116=0),TRUE)","v":true},{"$f":"IF(A96,0,IF('Журнал втрати ваги'!B117=0,'Журнал втрати ваги'!B116+5,'Журнал втрати ваги'!B117))","v":"00:00:00"},{"$f":"'Журнал втрати ваги'!C117","v":0}]
[{"$f":"IF(('Журнал втрати ваги'!C118=0)*('Журнал втрати ваги'!C117=0),TRUE)","v":true},{"$f":"IF(A97,0,IF('Журнал втрати ваги'!B118=0,'Журнал втрати ваги'!B117+5,'Журнал втрати ваги'!B118))","v":"00:00:00"},{"$f":"'Журнал втрати ваги'!C118","v":0}]
[{"$f":"IF(('Журнал втрати ваги'!C119=0)*('Журнал втрати ваги'!C118=0),TRUE)","v":true},{"$f":"IF(A98,0,IF('Журнал втрати ваги'!B119=0,'Журнал втрати ваги'!B118+5,'Журнал втрати ваги'!B119))","v":"00:00:00"},{"$f":"'Журнал втрати ваги'!C119","v":0}]
[{"$f":"IF(('Журнал втрати ваги'!C120=0)*('Журнал втрати ваги'!C119=0),TRUE)","v":true},{"$f":"IF(A99,0,IF('Журнал втрати ваги'!B120=0,'Журнал втрати ваги'!B119+5,'Журнал втрати ваги'!B120))","v":"00:00:00"},{"$f":"'Журнал втрати ваги'!C120","v":0}]
[{"$f":"IF(('Журнал втрати ваги'!C121=0)*('Журнал втрати ваги'!C120=0),TRUE)","v":true},{"$f":"IF(A100,0,IF('Журнал втрати ваги'!B121=0,'Журнал втрати ваги'!B120+5,'Журнал втрати ваги'!B121))","v":"00:00:00"},{"$f":"'Журнал втрати ваги'!C121","v":0}]
[{"$f":"IF(('Журнал втрати ваги'!C122=0)*('Журнал втрати ваги'!C121=0),TRUE)","v":true},{"$f":"IF(A101,0,IF('Журнал втрати ваги'!B122=0,'Журнал втрати ваги'!B121+5,'Журнал втрати ваги'!B122))","v":"00:00:00"},{"$f":"'Журнал втрати ваги'!C122","v":0}]
[{"$f":"IF(('Журнал втрати ваги'!C123=0)*('Журнал втрати ваги'!C122=0),TRUE)","v":true},{"$f":"IF(A102,0,IF('Журнал втрати ваги'!B123=0,'Журнал втрати ваги'!B122+5,'Журнал втрати ваги'!B123))","v":"00:00:00"},{"$f":"'Журнал втрати ваги'!C123","v":0}]
[{"$f":"IF(('Журнал втрати ваги'!C124=0)*('Журнал втрати ваги'!C123=0),TRUE)","v":true},{"$f":"IF(A103,0,IF('Журнал втрати ваги'!B124=0,'Журнал втрати ваги'!B123+5,'Журнал втрати ваги'!B124))","v":"00:00:00"},{"$f":"'Журнал втрати ваги'!C124","v":0}]
[{"$f":"IF(('Журнал втрати ваги'!C125=0)*('Журнал втрати ваги'!C124=0),TRUE)","v":true},{"$f":"IF(A104,0,IF('Журнал втрати ваги'!B125=0,'Журнал втрати ваги'!B124+5,'Журнал втрати ваги'!B125))","v":"00:00:00"},{"$f":"'Журнал втрати ваги'!C125","v":0}]
[{"$f":"IF(('Журнал втрати ваги'!C126=0)*('Журнал втрати ваги'!C125=0),TRUE)","v":true},{"$f":"IF(A105,0,IF('Журнал втрати ваги'!B126=0,'Журнал втрати ваги'!B125+5,'Журнал втрати ваги'!B126))","v":"00:00:00"},{"$f":"'Журнал втрати ваги'!C126","v":0}]
[{"$f":"IF(('Журнал втрати ваги'!C127=0)*('Журнал втрати ваги'!C126=0),TRUE)","v":true},{"$f":"IF(A106,0,IF('Журнал втрати ваги'!B127=0,'Журнал втрати ваги'!B126+5,'Журнал втрати ваги'!B127))","v":"00:00:00"},{"$f":"'Журнал втрати ваги'!C127","v":0}]
[{"$f":"IF(('Журнал втрати ваги'!C128=0)*('Журнал втрати ваги'!C127=0),TRUE)","v":true},{"$f":"IF(A107,0,IF('Журнал втрати ваги'!B128=0,'Журнал втрати ваги'!B127+5,'Журнал втрати ваги'!B128))","v":"00:00:00"},{"$f":"'Журнал втрати ваги'!C128","v":0}]
[{"$f":"IF(('Журнал втрати ваги'!C129=0)*('Журнал втрати ваги'!C128=0),TRUE)","v":true},{"$f":"IF(A108,0,IF('Журнал втрати ваги'!B129=0,'Журнал втрати ваги'!B128+5,'Журнал втрати ваги'!B129))","v":"00:00:00"},{"$f":"'Журнал втрати ваги'!C129","v":0}]